Cogmind - Beta 13 @@@ ROGUE MODE // 2024.04.17 @ 13:42:17 Player: Pitifulpancake Result: Destroyed by B-75 Beast with Heavy Plasma Cannon Performance ------------- Evolutions (4) 2000 Regions Visited (7) 1400 Robots Destroyed (92) 460 Value Destroyed (3105) 3105 Prototype IDs (8) 160 Alien Tech Used (0) 0 Bonus (85) 85 TOTAL SCORE: 7210 Bonus ------- High Alert Combat Kills 109 Friendly Fire -24 Cogmind --------- Core Integrity 0/850 Matter 273/300 Energy 146/146 System Corruption 25% Temperature Cool (12) Movement Rolling (155) Ox1 Location -6/Lower Caves Parts ------- > --- POWER (2) -------- Deuterium-Ion Engine > --- PROPULSION (4) --- Wheeled Compact-Carbon Exoskeleton > --- UTILITY (5) ------ Armored Scrap Engine Advanced Heat Sink Large Storage Unit Hacking Suite > --- WEAPON (4) ------- High-powered Shock Rifle Hpw. Kinetic Construct/G Greatsword > --- INVENTORY (15) --- Light Angular Momentum Engine Light Treads Carbon-fiber Leg Carbon-fiber Leg Flexi-carbon Leg Compact Wheel Compact Wheel Advanced Heat Sink Advanced Sensor Array Hardlight Generator System Shield Remote Datajack Peak State ------------ > --- POWER ------------ Light Antimatter Reactor Deuterium-Ion Engine > --- PROPULSION ------- Wheeled Compact-Carbon Exoskeleton Airjet > --- UTILITY ---------- Armored Scrap Engine Advanced Heat Sink Large Storage Unit Core Analyzer > --- WEAPON ----------- Precision Assault Rifle Flak Accelerated Gauss Construct/G Ballistic Assault Construct/G Hpw. Kinetic Construct/G > --- INVENTORY -------- Light Deuterium Engine Light Angular Momentum Engine Carbon-fiber Leg Carbon-fiber Leg Flexi-carbon Leg Compact Wheel Compact Wheel Airjet Advanced Sensor Array Particle Charger Hacking Suite High-powered Shock Rifle Thermic Laser Remote Datajack Heavy Mace [Rating: 80] Favorites ----------- Power Constructs Engine Constructs Power Core Light Fission Core Reactor Light Antimatter Reactor Propulsion Constructs Treads Light Treads Leg Aluminum Leg Wheel Constructs Hover Unit Airjet Utility Large Storage Unit Device Armored Scrap Engine Storage Large Storage Unit Processor Core Analyzer Hackware Hacking Suite Protection Light Armor Plating Weapon Constructs Energy Gun Constructs Ballistic Gun Constructs Launcher Precision Rocket Launcher Special Weapon Remote Datajack Impact Weapon Heavy Mace Slashing Weapon Greatsword Special Melee Weapon Improved Datajack Build | -11 -10 -10 -8 -6 -6 -6 -6 ------- Run | Yrd Mat Sub Rec Fac Was Fac Low Slots Evolved 8 | . . . . 8 . . . Power 1 | . . . . 1 . . . Propulsion 2 | . . . . 2 . . . Utility 3 | . . . . 3 . . . Weapon 2 | . . . . 2 . . . Parts Attached 106 | 8 11 22 6 20 1 32 6 Power 10 | 1 1 3 . 1 . 4 . Engine 8 | 1 1 3 . 1 . 2 . Core 1 | . . . . . . 1 . Reactor 1 | . . . . . . 1 . Propulsion 25 | 3 5 7 3 . . 7 . Treads 2 | . . 2 . . . . . Leg 8 | . 5 . . . . 3 . Wheel 12 | 3 . 5 3 . . 1 . Hover 3 | . . . . . . 3 . Flight . | . . . . . . . . Utility 22 | 2 1 2 1 5 . 10 1 Device 13 | 1 . 1 1 2 . 7 1 Storage 4 | 1 1 . . 1 . 1 . Processor 3 | . . . . 2 . 1 . Hackware 1 | . . . . . . 1 . Protection 1 | . . 1 . . . . . Artifact . | . . . . . . . . Weapon 49 | 2 4 10 2 14 1 11 5 Energy Gun 5 | . . . . . . 3 2 Energy Cannon . | . . . . . . . . Ballistic Gun 29 | 2 3 8 1 8 . 5 2 Ballistic Cannon . | . . . . . . . . Launcher 2 | . . . . 1 1 . . Special Weapon 4 | . 1 2 . . . 1 . Impact Weapon 2 | . . . 1 . . 1 . Slashing Weapon 6 | . . . . 4 . 1 1 Piercing Weapon . | . . . . . . . . Special Melee Weapon 1 | . . . . 1 . . . Unidentified Prototypes 3 | . . . . 2 . 1 . Parts Lost 29 | . . 8 . 6 1 14 . Power 5 | . . 1 . 1 . 3 . Propulsion 4 | . . 2 . . . 2 . Utility 7 | . . 2 . 1 1 3 . Weapon 13 | . . 3 . 4 . 6 . Highest Loss Streak 7 | . . 7 . 6 1 6 . To Critical Strikes 1 | . . . . 1 . . . Average Slot Usage (%) 72 | . 97 97 74 61 65 66 58 Engine 7 | . 14 13 14 4 4 1 6 Core 1 | . . . . 3 6 3 . Treads 3 | . . 8 8 1 . . . Leg 4 | . 17 14 . . . 4 5 Wheel 4 | . 9 4 9 3 6 . . Hover 1 | . . . . . . 3 . Device 12 | . 14 10 14 12 10 13 12 Storage 5 | . 14 14 . 6 4 5 6 Processor 2 | . . . . 5 6 3 . Hackware 1 | . . . . . . 2 6 Energy Gun 4 | . . . 4 5 4 5 8 Energy Cannon 1 | . . . 3 1 1 . . Ballistic Gun 14 | . 25 25 17 8 13 11 4 Naked Turns . | . . . . . . . . Heaviest Build 59 | 12 30 33 33 50 50 59 58 Greatest Support 98 | 26 20 40 40 71 66 98 38 Greatest Overweight (x) 10 | . 2 10 2 1 . 3 1 Average Overweight (x) . | . . . . . . . 1 Largest Inventory Capacity 15 | 8 15 15 15 15 15 15 15 Average Capacity 12 | 7 14 15 5 14 12 14 15 Most Carried 15 | 8 14 15 15 9 10 15 15 Average Carried 9 | 3 10 13 5 6 8 10 13 Final Capacity 15 | 8 15 15 5 15 5 15 15 Final Carried 15 | 8 14 15 5 9 5 14 12 Scrap Engine Consumption 185 | . . . 65 44 4 67 5 Constructs Created 13 | . . . 4 4 . 5 . Constructs Modified 54 | . . . 10 17 2 22 3 Class Distribution -------------------- 68% | Construct 27% | Mutant Dominant Class ---------------- Mutant | -10/Materials Mutant | -10/Subcaves Construct | -8/Recycling Construct | -6/Factory Construct | -6/Waste Construct | -6/Factory Construct | -6/Lower Caves Resources | -11 -10 -10 -8 -6 -6 -6 -6 ----------- Run | Yrd Mat Sub Rec Fac Was Fac Low Matter Collected 3364 | 292 111 557 244 425 . 1512 223 Remotely . | . . . . . . . . Salvage Created 5040 | 104 111 208 1423 772 . 2199 223 Parts 223 | 8 8 14 46 31 . 106 10 Haulers Intercepted 2 | . . . . 2 . . . Recyclers Shooed 10 | . . . 5 2 . 3 . Parts Field Recycled . | . . . . . . . . Retrieved Matter . | . . . . . . . . Parts Self-Destructed 25 | . . 14 . . . . 11 Prevented 2 | . . . . . . . 2 Kills | -11 -10 -10 -8 -6 -6 -6 -6 ------- Run | Yrd Mat Sub Rec Fac Was Fac Low Combat Hostiles Destroyed 60 | . 3 6 3 11 . 33 4 Melee 10 | . . . . 4 . 5 1 Guns 43 | . 3 6 2 6 . 23 3 Cannons 5 | . . . 1 . . 4 . Classes Destroyed 15 | 2 1 4 1 5 . 2 . Worker 1 | . . . . . . 1 . Builder 8 | . . . 1 1 . 6 . Tunneler 2 | 2 . . . . . . . Hauler 2 | . . . . 2 . . . Recycler 15 | 1 . . 10 . . 4 . Operator 1 | . . . . . . 1 . Turret 2 | . . 2 . . . . . Watcher 1 | . . . . 1 . . . Swarmer 14 | . . 3 . 3 . 7 1 Grunt 23 | . 3 . . 4 . 15 1 Duelist 2 | . . . . 1 . . 1 Sentry 11 | . . 1 3 . . 6 1 Hunter 4 | . . . . 2 . 2 . Programmer 4 | . . . . 1 . 3 . Subdweller 2 | . . 2 . . . . . Best Kill Streak 9 | 3 3 2 6 3 . 9 3 Combat Bots Only 6 | . 3 2 1 3 . 6 3 Max Kills in Single Turn 2 | 2 1 1 2 1 . 2 2 Gunslinging 1 | . . . . . . 1 1 Exploded . | . . . . . . . . Melee 1 | . . . . 1 . 1 1 Uniques/NPCs Destroyed . | . . . . . . . . Combat | -11 -10 -10 -8 -6 -6 -6 -6 -------- Run | Yrd Mat Sub Rec Fac Was Fac Low Hostile Shots Fired 679 | . 11 86 22 176 3 350 31 Missed 203 | . 2 25 3 52 . 117 4 Damage Taken 7565 | . 97 835 279 2104 131 3416 703 Core 1056 | . 21 137 27 340 . 399 132 Absorbed by Shields . | . . . . . . . . Regen/Repaired (Parts) 2234 | . . . 39 936 29 890 340 Core Remaining (%) 63 | 100 . . 26 . . . . Volleys Fired 253 | 3 9 35 54 52 2 90 8 Largest 4 | 2 2 2 2 4 4 4 4 Hottest 209 | 40 100 100 114 172 137 209 201 Shots Fired 629 | 6 17 59 106 127 8 277 29 Gun 570 | 6 16 50 93 116 6 254 29 Cannon 44 | . . . 13 11 . 20 . Launcher 2 | . . . . . 2 . . Special 13 | . 1 9 . . . 3 . Kinetic 459 | 6 16 50 90 50 4 226 17 Thermal 156 | . 1 9 16 77 2 47 4 Explosive 2 | . . . . . 2 . . Electromagnetic 9 | . . . . . . 1 8 Robot Hit Streak 14 | 3 8 9 14 13 . 13 5 Robot Miss Streak 8 | 1 2 3 5 4 . 8 3 Penetration Max 1 | . . . . 1 . 1 . Secondary Targets 7 | . . 1 . . . 4 2 Max Gunslinging Chain 2 | . . 1 . . . 1 2 Shots Hit Robots 411 | 4 12 32 71 96 . 170 26 Core Hits 194 | 5 5 12 27 30 1 101 13 Critical Kills 3 | . . . . . . 3 . Critical Parts Destroyed 4 | . . . 2 . . 2 . Critical Strikes 21 | . . 1 2 6 . 10 2 Burn 4 | . . . . 3 . 1 . Destroy 6 | . . 1 2 . . 3 . Blast 1 | . . . . . . 1 . Smash 3 | . . . . . . 3 . Sever 7 | . . . . 3 . 2 2 Melee Attacks 75 | . . . 1 25 . 40 9 Impact 27 | . . . 1 . . 26 . Slashing 45 | . . . . 22 . 14 9 Piercing . | . . . . . . . . Sneak Attacks 9 | . . . 1 4 . 4 . Combat Hostiles . | . . . . . . . . Follow-up Attacks . | . . . . . . . . Damage Inflicted 10117 | 49 160 447 1500 2070 390 4889 612 Guns 6701 | 49 160 436 1140 1386 54 3093 383 Cannons 570 | . . . 200 112 . 258 . Explosions 336 | . . . . . 336 . . Melee 2378 | . . . 142 572 . 1435 229 Ramming 121 | . . . 18 . . 103 . Kinetic 5137 | 49 160 436 1108 630 34 2553 167 Thermal 1990 | . . 11 232 868 20 778 81 Explosive 336 | . . . . . 336 . . Electromagnetic 155 | . . . . . . 20 135 Impact 982 | . . . 142 . . 840 . Slashing 1396 | . . . . 572 . 595 229 Piercing . | . . . . . . . . Highest Corruption 25 | . . . . 1 21 25 25 Average Corruption 20 | . . . . 1 12 23 25 Corruption Purged . | . . . . . . . . Corruption Blocked . | . . . . . . . . Effects 144 | . . . . 4 6 112 22 Message Errors 34 | . . . . 2 1 27 4 Matter Fused 41 | . . . . 1 3 32 5 Heat Flow Errors 12 | . . . . 1 1 8 2 Energy Discharges 15 | . . . . . 1 12 2 Parts Rejected 3 | . . . . . . 1 2 Data Loss (minor) 13 | . . . . . . 11 2 Data Loss (major) 6 | . . . . . . 4 2 Misfires 5 | . . . . . . 3 2 Alerts 2 | . . . . . . 2 . Misdirections 3 | . . . . . . 3 . Weapon Failures 10 | . . . . . . 9 1 Overload Shots . | . . . . . . . . Overflow Damage 441 | . . . . 51 . 390 . Projectiles . | . . . . . . . . Explosions . | . . . . . . . . Melee 441 | . . . . 51 . 390 . Knockbacks 7 | . . . 1 . . 6 . Impact 6 | . . . 1 . . 5 . Kinetic 1 | . . . . . . 1 . Secondary . | . . . . . . . . Self-Inflicted Damage 129 | . . . . . . 129 . Shots 1 | . . . . . . 1 . Rammed 5 | . . . 3 . . 2 . Targets Rammed 5 | . . . 3 . . 2 . Kicked . | . . . . . . . . Crushed . | . . . . . . . . Highest Temperature 691 | . 20 13 413 691 120 521 659 Average Temperature 176 | . 10 5 106 347 26 159 340 Received Heat Transfer 1422 | . 54 132 117 342 . 627 150 Effects 45 | . . . 2 15 . 14 14 Shutdowns 12 | . . . . 4 . 6 2 Energy Bleed 6 | . . . 1 2 . 2 1 Interference 9 | . . . 1 1 . 3 4 Matter Decay 2 | . . . . 1 . . 1 Short Circuit 5 | . . . . 2 . 2 1 Damage (minor) 4 | . . . . 1 . 1 2 Damage (major) 7 | . . . . 4 . . 3 Siege Activations . | . . . . . . . . Robots Corrupted . | . . . . . . . . Combat Hostiles . | . . . . . . . . Parts Fried 3 | . . . . . . 3 . Impact Corruptions 11 | . . . . . . 11 . Robots Melted 2 | . . . . 2 . . . Combat Hostiles 1 | . . . . 1 . . . Parts Melted 10 | . . . 1 7 . 2 . Heat Transferred 4617 | . . 80 481 2364 37 1480 175 Parts Sabotaged . | . . . . . . . . Parts Stolen . | . . . . . . . . Parts Stripped . | . . . . . . . . Power Chain Reactions . | . . . . . . . . Alert | -11 -10 -10 -8 -6 -6 -6 -6 ------- Run | Yrd Mat Sub Rec Fac Was Fac Low Peak Influence 592 | 15 95 . 171 122 59 592 . Initial 84 | . 9 . 84 . 27 34 . Average 151 | 4 36 . 38 62 39 318 . Maximum Alert Level 2 | . . . . . . 2 . Low Security (%) 71 | 100 100 . 100 100 100 26 . Level 1 13 | . . . . . . 36 . Level 2 14 | . . . . . . 37 . Level 3 . | . . . . . . . . Level 4 . | . . . . . . . . Level 5 . | . . . . . . . . High Security . | . . . . . . . . Max Security . | . . . . . . . . Squads Dispatched 13 | . 1 . . 4 . 8 . Investigation 4 | . 1 . . 1 . 2 . Extermination 4 | . . . . 1 . 3 . Reinforcement 5 | . . . . 2 . 3 . Assault . | . . . . . . . . Garrison . | . . . . . . . . Intercept . | . . . . . . . . Searches Triggered . | . . . . . . . . Construction Impeded 2 | . . . . . . 2 . Haulers Reinforced 2 | . . . . 2 . . . Active Scanning Responses . | . . . . . . . . Cargo Convoy Interrupts . | . . . . . . . . Stealth | -11 -10 -10 -8 -6 -6 -6 -6 --------- Run | Yrd Mat Sub Rec Fac Was Fac Low Distress Signals 6 | . . . . 1 . 5 . Communications Jammed . | . . . . . . . . Distress Signals . | . . . . . . . . Times Spotted 99 | . 3 20 3 16 5 44 8 Peak Tracking Total 9 | . 3 2 1 7 5 9 6 Tactical Retreats 7 | . . 1 . . . 4 2 Traps | -11 -10 -10 -8 -6 -6 -6 -6 ------- Run | Yrd Mat Sub Rec Fac Was Fac Low Traps Triggered 6 | . 2 . . 1 . 3 . Indirectly . | . . . . . . . . Trap Hack Attempts . | . . . . . . . . Triggered . | . . . . . . . . Disarmed . | . . . . . . . . Reprogrammed . | . . . . . . . . Reused . | . . . . . . . . Traps Extracted . | . . . . . . . . Installed . | . . . . . . . . Triggered . | . . . . . . . . Most Traps Carried 1 | . . 1 . . . . . Machines | -11 -10 -10 -8 -6 -6 -6 -6 ---------- Run | Yrd Mat Sub Rec Fac Was Fac Low Machines Disabled 10 | . . 1 . . . 9 . Max in Single Turn 6 | . . 1 . . . 6 . Garrison Access 2 | . . . . . . 2 . Machines Repaired . | . . . . . . . . Machines Dismantled . | . . . . . . . . Machines Sabotaged . | . . . . . . . . Overloaded Fab Kills . | . . . . . . . . Hacking | -11 -10 -10 -8 -6 -6 -6 -6 --------- Run | Yrd Mat Sub Rec Fac Was Fac Low Machines Accessed 26 | . 3 . 11 3 . 9 . Terminals 15 | . 3 . 6 2 . 4 . Fabricators . | . . . . . . . . Repair Stations 1 | . . . . 1 . . . Recycling Units 7 | . . . 5 . . 2 . Scanalyzers 1 | . . . . . . 1 . Garrison Access 2 | . . . . . . 2 . Total Hacks 64 | . 7 . 28 8 . 21 . Successful 26 | . 1 . 15 3 . 7 . Failed 38 | . 6 . 13 5 . 14 . Catastrophic 8 | . 1 . 3 . . 4 . Database Lockouts . | . . . . . . . . Manual 8 | . 1 . 3 . . 4 . Terminals 40 | . 7 . 18 4 . 11 . Fabricators . | . . . . . . . . Repair Stations 4 | . . . . 4 . . . Recycling Units 13 | . . . 10 . . 3 . Scanalyzers 1 | . . . . . . 1 . Garrison Access 6 | . . . . . . 6 . Terminal Hacks 13 | . 1 . 7 1 . 4 . Record 5 | . . . 2 1 . 2 . Terminal Index 1 | . . . 1 . . . . Alert Level 3 | . . . 2 . . 1 . Unreport Threat 1 | . . . . . . 1 . Zone Layout 3 | . 1 . 2 . . . . Fabricator Hacks . | . . . . . . . . Repair Station Hacks 2 | . . . . 2 . . . Scan Component 1 | . . . . 1 . . . Repair 1 | . . . . 1 . . . Recycling Unit Hacks 9 | . . . 8 . . 1 . Report Inventory 7 | . . . 6 . . 1 . Retrieve Components 2 | . . . 2 . . . . Scanalyzer . | . . . . . . . . Garrison Access Hacks 2 | . . . . . . 2 . Seal Access 2 | . . . . . . 2 . Unauthorized Hacks . | . . . . . . . . Terminals . | . . . . . . . . Fabricators . | . . . . . . . . Repair Stations . | . . . . . . . . Recycling Units . | . . . . . . . . Scanalyzers . | . . . . . . . . Garrison Access . | . . . . . . . . Data Cores Recovered 1 | . . . . . . 1 . Used . | . . . . . . . . Hacking Detections 22 | . 3 . 8 3 . 8 . Full Trace Events 3 | . 1 . . 1 . 1 . Feedback Events . | . . . . . . . . Feedback Blocked . | . . . . . . . . Robot Schematics Acquired . | . . . . . . . . Robots Built . | . . . . . . . . Authchips . | . . . . . . . . Time . | . . . . . . . . Total Robot Build Rating . | . . . . . . . . Part Schematics Acquired . | . . . . . . . . Parts Built . | . . . . . . . . Authchips . | . . . . . . . . Time . | . . . . . . . . Total Part Build Rating . | . . . . . . . . Parts Repaired 1 | . . . . 1 . . . Time 19 | . . . . 19 . . . Parts Recycled . | . . . . . . . . Recycled Matter . | . . . . . . . . Retrieved Matter . | . . . . . . . . Retrieved Components 11 | . . . 11 . . . . Parts Scanalyzed . | . . . . . . . . Part Schematics Acquired . | . . . . . . . . Parts Damaged . | . . . . . . . . Bothacking | -11 -10 -10 -8 -6 -6 -6 -6 ------------ Run | Yrd Mat Sub Rec Fac Was Fac Low Used RIF Installer . | . . . . . . . . Robots Hacked 4 | . . . . 2 . 2 . Non-combat 4 | . . . . 2 . 2 . Combat . | . . . . . . . . Robot Hacks Applied 6 | . . . . 3 . 3 . no_distress 4 | . . . . 2 . 2 . find_chute 1 | . . . . 1 . . . find_recycling 1 | . . . . . . 1 . Relay Couplers Released . | . . . . . . . . Fabnet Peak Effective % . | . . . . . . . . Robots Rewired . | . . . . . . . . Allies Hacked . | . . . . . . . . Hacks Repelled . | . . . . . . . . Allies | -11 -10 -10 -8 -6 -6 -6 -6 -------- Run | Yrd Mat Sub Rec Fac Was Fac Low Total Allies . | . . . . . . . . Largest Group . | . . . . . . . . Highest-Rated Group . | . . . . . . . . Highest-Rated Ally . | . . . . . . . . Total Orders . | . . . . . . . . Ally Attacks . | . . . . . . . . Total Damage . | . . . . . . . . Kills . | . . . . . . . . Allies Corrupted . | . . . . . . . . Allies Melted . | . . . . . . . . Intel | -11 -10 -10 -8 -6 -6 -6 -6 ------- Run | Yrd Mat Sub Rec Fac Was Fac Low Robot Analysis Total . | . . . . . . . . Derelict Logs Recovered 1 | . . 1 . . . . . Drone Launches . | . . . . . . . . Drone Recoveries . | . . . . . . . . Exploration | -11 -10 -10 -8 -6 -6 -6 -6 ------------- Run | Yrd Mat Sub Rec Fac Was Fac Low Turns Passed 6805 | 81 244 988 1643 1192 152 2075 430 Spaces Moved 4271 | 61 142 483 1115 687 155 1387 241 Core 32 | 1 . 7 24 . . . . Treads 992 | . . 142 694 156 . . . Legs 1302 | . 64 214 . 111 . 678 235 Wheels 1385 | 60 78 120 397 368 155 201 6 Hover 560 | . . . . 52 . 508 . Flight . | . . . . . . . . Fastest Speed 50 | 50 80 95 101 89 92 65 153 Average Speed 120 | 87 138 165 125 123 92 97 153 Slowest Speed 550 | 100 260 550 150 158 92 154 155 Overloaded Moves . | . . . . . . . . Propulsion Burnouts . | . . . . . . . . Robots Hopped . | . . . . . . . . Cave-ins Triggered 1 | . . . . . . 1 . Exploration Rate (%) 37 | 4 16 37 99 13 82 25 21 Regions Visited 7 Branch Regions 3 Pre-discovered Areas 1 | . . 1 . . . . . Known Exits Taken . | . . . . . . . . Unknown Exits Taken 5 | 1 1 1 1 . . 1 . Scrap Searched 2 | . . 2 . . . . . Spaces Dug 79 | . 1 . . 3 . 75 . Terrain Destroyed 156 | . 1 . 2 3 28 122 . Melee 8 | . . . . 3 . 5 . Projectile 73 | . 1 . 2 . . 70 . AOE 75 | . . . . . 28 47 . Terrain Rammed . | . . . . . . . . Walls Destroyed . | . . . . . . . . Machines Disabled . | . . . . . . . . Actions | -11 -10 -10 -8 -6 -6 -6 -6 --------- Run | Yrd Mat Sub Rec Fac Was Fac Low Total 5278 | 78 167 605 1259 892 158 1848 271 Wait 410 | . 2 42 41 84 . 240 1 Move 4265 | 60 141 482 1114 687 154 1386 241 Hop . | . . . . . . . . Pick Up 73 | 7 3 11 8 12 1 29 2 Fast Attach 38 | 7 4 4 2 8 . 11 2 Attach 32 | . . 6 1 8 . 13 4 Detach 15 | . . . 3 5 . 6 1 Swap 36 | 1 7 12 3 4 1 8 . Drop 63 | . 1 13 16 7 . 23 3 Fire 253 | 3 9 35 54 52 2 90 8 Melee 75 | . . . 1 25 . 40 9 Ram 2 | . . . . . . 2 . Kick . | . . . . . . . . Crush 3 | . . . 3 . . . . Escape Stasis . | . . . . . . . . Rewire 13 | . . . 13 . . . . Trap . | . . . . . . . . Miscellaneous . | . . . . . . . . Route ------- -11/Scrapyard -10/Materials -10/Subcaves (discovered 3 exits: [*Mat x2] / *Rec) -8/Recycling -6/Factory -6/Waste -6/Factory -6/Lower Caves History --------- Turn | Location | Event 22 | -11/Scrapyard | Discovered new exit (range 15) 82 | -11/Scrapyard | Entered Materials 261 | -10/Materials | Discovered new exit (range 12) 326 | -10/Materials | Entered Subcaves 340 | -10/Subcaves | Build established: Mutant 504 | -10/Subcaves | Discovered new exit (range 10) 693 | -10/Subcaves | Discovered new exit (range 11) 761 | -10/Subcaves | Shifting Twisted Machinery released Barrage Gun 763 | -10/Subcaves | Shifting Twisted Machinery released Enh. Flamer 836 | -10/Subcaves | Core integrity fell below 50% 864 | -10/Subcaves | Lost 7 parts (1p2n1u3w) 950 | -10/Subcaves | Shifting Twisted Machinery released Shrapnel Trap 974 | -10/Subcaves | Shifting Twisted Machinery released Sub. Machine Gun 1098 | -10/Subcaves | Discovered new exit (range 14) 1314 | -10/Subcaves | Entered Recycling 1318 | -8/Recycling | Found Scrap Engine 2133 | -8/Recycling | Build established: Construct 2661 | -8/Recycling | Discovered new exit (range 5) 2957 | -8/Recycling | Entered Factory 2957 | -6/Factory | Evolved 8 slots: Power x1, Propulsion x2, Utility x3, Weapon x2 3706 | -6/Factory | Lost 6 parts (1p1u4w) 4039 | -6/Factory | Repaired Axe 4149 | -6/Factory | Sucked down chute 4149 | -6/Factory | Entered Waste 4155 | -6/Waste | Spotted C-40 Crusher 4164 | -6/Waste | EMP discharged 4164 | -6/Waste | System corruption reached 10% 4196 | -6/Waste | Spotted C-40 Crusher 4201 | -6/Waste | Spotted C-40 Crusher 4201 | -6/Waste | Spotted C-40 Crusher 4256 | -6/Waste | Spotted C-40 Crusher 4258 | -6/Waste | Crushed by Compactor (1 part destroyed, 2 dropped) 4261 | -6/Waste | Crushed by Compactor (0 parts destroyed, 1 dropped) 4264 | -6/Waste | EMP discharged 4283 | -6/Waste | Discovered new exit (range 16) 4301 | -6/Waste | Entered Factory 5053 | -6/Factory | Core integrity fell below 50% 5243 | -6/Factory | Crushed by falling debris 5300 | -6/Factory | Lost 6 parts (2p1n1u2w) 6026 | -6/Factory | Core integrity fell below 20% 6059 | -6/Factory | Discovered new exit (range 8) 6294 | -6/Factory | Spotted B-75 Beast 6376 | -6/Factory | Entered Lower Caves 6399 | -6/Lower Caves | Encountered a Warlord checkpoint 6519 | -6/Lower Caves | Spotted B-75 Beast 6565 | -6/Lower Caves | Attracted the attention of an 0b10 outpost 6806 | -6/Lower Caves | Destroyed by B-75 Beast with Heavy Plasma Cannon Last Messages --------------- 06702_ Scrap Engine modifies Ballistic Construct/G: Min Damage +12, Max Damage +13 Renamed Hpw. Kinetic Construct/G. 06707_ System corrupted: Heat flow error (+194). 06722_ System corrupted: Substantial component data lost. 06740_ System corrupted: Energy discharge (-80). 06754_ Dropped Fusion Compressor. 06756_ MS,XFLOOY=Y1HA02U#3E<5VO 06757_ Arm. Scrap Engine consumes Fusion Compressor. 06789_ Scrap Engine modifies Deuterium-Ion Engine: Matter Upkeep +1, Storage -91, Heat +17. 06797_ Scrap Engine modifies FC-Carbon Exoskeleton: Energy +9, Time/Move +51, Penalty -49 Renamed Wheeled Compact-Carbon Exoskeleton. 06806_ System corrupted: Component data lost. Map ----- +----------------------------------------------------+ | ?????????????????????????????????????????????????? | | ?????????????????????????????????????????????????? | | ?????????????????????????????????????????????????? | | ?????????????????????????????????????????????????? | | ?????????????????????????????????????????????????? | | ?????????????????????????????????????????????????? | | ?????????????????????????????????????????????????? | | ?????????????????????????????????????????????????? | | ???????????????????????????????????######????????? | | ?????????????????????????????#####?# ###??????? | | ?????????????????????????????# ### ##?????? | | ??????????????????????????????# ## ####### | | ??????????????????????????????## ## # | | ???????????????????????????????## #### | | ????????????????????????????????## #??# # | | ????????????????????????????????## #### #### | | ?????????????????????????####??## ## ##??# | | ????????????????????????## #### #???# | | ???????????????????????## ## ###?# | | ???????????????????????# ### ### | | ???????????????????????### ## | | ?????????????????????????# ### ### ### | | ??????????????? ###??????# ## ## # "# | | ???????????????# $??????# ### ## # "# | | ???????????????# #### #?# ## # "# | | ???????????????# BB @ ## ## ## "# | | ???????????????# BB $ ###### ### # ?? "# | | ?????????????### ??????## #?# ### #""??""# | | ???????????? ??????# #?###### ######## | | ??????????? ## #?????# #????# " ! | | ???????????? #????# #????########% # | | ???????????? ## ##### #??????# = | | ???????????????#?# #??????# % | | ??????????????????# ###### ######## | | ??????????????????## ???????# ! | | ???????????????????# ?????????##### ### # % | | ??????????????????????????????????# #?# ## | | ??????????????????????????????????# #?#### | | ????????????????????????????####### ##### | | ????????????????????????????# ## ## | | ????????????????????????????# ## | | ??????????????????????????### ###### | | ?????????????????????????## ## ##????## | | ?????????????????????????# ### #####??????? | | ?????????????????????????## ##?## ##??????????? | | ??????????????????????????####???#####???????????? | | ?????????????????????????????????????????????????? | | ?????????????????????????????????????????????????? | | ?????????????????????????????????????????????????? | | ?????????????????????????????????????????????????? | +----------------------------------------------------+ Best States ------------- Heat Dissipation 56 Coolant Potential 50 Energy Generation 37 Energy Capacity 320 Matter Stores 300 Matter Capacity 300 Sight Range 16 Terrain Scan Range 16 Terrain Scan Density 10 Armor Coverage 150 Melee Speed Boost 20 Evasion (%) 59 Melee Accuracy 8 Core Analysis 6 Recoil Reduction 3 Particle Charging 15 Offensive Hacking 10 Item Schematics ----------------- None Robot Schematics ------------------ None Fabricated ------------ Nothing Alien Tech Used ----------------- None Achievements -------------- None Challenges ------------ None Game ------ Seed ShieldWeldingFlightbrick Manual? 0 Play Time 01:46:12 Cumulative 15.4 hours Start 2024.04.16 @ 22:15:47 End 2024.04.17 @ 13:42:17 Sessions 6 Manual Loads 0 Difficulty Rogue Special Mode None Game No. 12 Rogue 12 Adventurer 0 Explorer 0 Win Type - Total 0 Types 0/0/0/0/0/0/0/0/0 Lore% 19 Gallery% 20 Achievement% 17 Wizard Run 0 Options --------- Layout 1 ASCII 0 Keyboard 0 Movement Mouse Keybinds 0 Fullscreen 1 Font 24/Terminus Map View 50x35 Zoom Use 3% Tactical HUD 1 Map Filters NONE Filters NONE Steam 1 RUN: 001f3eb6-62ec-4941-95e9-44bf23e973c4